[Event "45th FIDE Womens Olympiad 2024"]
[Site "Budapest"]
[Date "2024.09.16"]
[Round "6.61"]
[White "Rivera, Ingris"]
[Black "Tsolakidou, Stavroula"]
[Result "0-1"]
[ECO "E71"]
[WhiteElo "2171"]
[BlackElo "2444"]
[Annotator "TA"]
[PlyCount "64"]
[EventDate "2024.09.05"]
[EventType "team-tourn"]
[EventCountry "HUN"]
[SourceTitle "playchess.com"]
[Source "ChessBase"]
[SourceQuality "1"]
[WhiteTeam "Colombia"]
[BlackTeam "Greece"]
[WhiteTeamCountry "COL"]
[BlackTeamCountry "GRE"]
[TimeControl "40/5400+30:1800+30"]

{[%evp 11,64,26,47,26,34,0,20,0,14,0,17,8,52,-57,-51,-94,-56,-143,-128,-123,-138,-150,-135,-278,-281,-295,-265,-278,-298,-380,-377,-291,-252,-239,-251,-530,-514,-1076,-1022,-1085,-1064,-1160,-806,-1705,-1560,-1895,-729,-956,-948,-1222,-918,-5274,-1684,-5010,-2458]} 1. d4 Nf6 2. c4 g6 3. Nc3 Bg7 4. e4 d6 5. h3 O-O 6. Be3 Nbd7 7. g4 c5 8. d5 b5 9. cxb5 {The position is equal.} a6 10. a4 Qa5 11. Bd2 axb5 12. Nxb5 ({Only move:} 12. Bxb5 $14 h5 13. Rc1) 12... Qb6 $1 $15 13. Qc2 Ba6 {[%mdl 1024] Black has strong compensation.} 14. Rb1 (14. Bf4 $15) 14... e6 $17 15. g5 Nh5 16. Bc4 Ne5 17. Be2 {Loses the game.} (17. b3 $17 {keeps fighting.}) 17... exd5 $19 18. exd5 Bc8 {...Bf5 would now be deadly.} 19. Qb3 Bf5 20. Ra1 Rfe8 21. Kf1 Be4 22. Rh2 c4 23. Qe3 {[#]} (23. Be3 {was the only chance.}) 23... Qxb5 {Black is clearly winning.} 24. axb5 (24. Qxe4 $142 Qxb2 (24... Rxa4 $2 25. Rxa4 Qxa4 26. b4 $19) 25. Rd1) 24... Rxa1+ 25. Bc1 Nd3 26. f3 Rxc1+ 27. Kg2 Nhf4+ (27... Bxd5 28. Qxe8+ Bf8 29. Kh1 (29. Bxd3 $2 cxd3 30. Qe3 Rc2+ 31. Kf1 Rxh2 $19) 29... Ng3+ (29... Nxb2 30. Rf2 $11) 30. Kg2 $19) 28. Kh1 Nxd5 (28... Bxf3+ $142 29. Qxf3 Bd4 (29... Bxb2 $2 30. Bxd3 Nxd3 31. Rxb2 $19)) 29. Qd2 Bd4 30. Rg2 Be3 31. Bxd3 {White is weak on the dark squares} cxd3 (31... Rxg1+ $142 32. Kh2 cxd3 (32... Bxd2 $2 33. Rxd2 Bxd3 34. Kxg1 $19) 33. fxe4 Bxd2 34. Rxd2 Rxg5 35. Rxd3 Rxe4) 32. fxe4 Bxd2 {Weighted Error Value: White=1.67/Black=0.94.  Mistake:       	White=5     	---        Inaccurate:     	White=2     	Black=1      OK:         	White=6     	Black=9      Best:        	White=1     	Black=2      Strong:       	---       	Black=1} 0-1

[Event "45th FIDE Womens Olympiad 2024"]
[Site "Budapest"]
[Date "2024.09.16"]
[Round "6.62"]
[White "Avramidou, Anastasia"]
[Black "Argote Heredia, Valentina"]
[Result "1-0"]
[ECO "E20"]
[WhiteElo "2290"]
[BlackElo "2144"]
[Annotator "TA"]
[PlyCount "91"]
[EventDate "2024.09.05"]
[EventType "team-tourn"]
[EventCountry "HUN"]
[SourceTitle "playchess.com"]
[Source "ChessBase"]
[SourceQuality "1"]
[WhiteTeam "Greece"]
[BlackTeam "Colombia"]
[WhiteTeamCountry "GRE"]
[BlackTeamCountry "COL"]
[TimeControl "40/5400+30:1800+30"]

{[%evp 15,91,19,18,28,31,35,28,29,33,19,29,10,34,39,75,73,76,75,139,133,121,125,123,138,141,141,140,165,174,164,170,171,181,148,177,151,193,130,104,117,155,154,223,228,262,179,216,120,180,126,133,106,114,110,93,98,124,118,119,90,129,126,235,189,272,202,194,174,202,199,194,179,187,187,202,204,29988,29989]} 1. d4 Nf6 2. c4 e6 3. Nf3 d5 4. Nc3 Bb4 5. g3 O-O 6. Bg2 c5 7. cxd5 Nxd5 8. Bd2 cxd4 9. Nxd5 Bxd2+ 10. Qxd2 Qxd5 11. Qxd4 {White has an edge.} Qa5+ 12. Qd2 Qb6 13. O-O Rd8 14. Qc2 h6 {Repels Ng5} 15. Ne5 Nd7 {[%cal Bb8d7,Bd7f6,Bf6d5][%mdl 32]} 16. Nc4 Qb4 (16... Qc7 $142) 17. Rfd1 $16 Qe7 18. Qd2 {White has more active pieces.} Rf8 19. Rac1 Nf6 20. Qa5 Nd5 {Prevents Nb6.} 21. e4 {[%cal Be2e4,Be4e5][%mdl 32]} b6 22. Qd2 Nf6 23. e5 {[%csl LRa8,LRf6]} Nd5 24. Nd6 {[%cal Of2f4]} (24. Bxd5 $6 exd5 25. Qxd5 Bg4 $14) 24... Ba6 25. b4 {[%cal Of2f4]} Rad8 26. Bxd5 (26. f4 $18) 26... exd5 {Black is weak on the dark squares} 27. Qxd5 Be2 28. Rd4 Bh5 (28... h5 $16 29. h3 Qe6 30. Qxe6 fxe6) 29. Re1 Kh8 30. Re3 Qc7 31. Qc4 ({White should play} 31. g4 $18 Bg6 32. f4) 31... Qe7 (31... Qxc4 $16 {was necessary.} 32. Rxc4 f6) 32. Nf5 (32. Qc3 $18) 32... Qg5 33. Rxd8 Rxd8 34. Nd6 Qe7 35. Qd5 {[%cal Og3g4]} Qc7 36. Kg2 $36 {[%mdl 2048] Black is under strong pressure.} Bg6 37. b5 Qe7 38. f4 {[%cal Bf2f4,Bf4f5][%mdl 32] Strongly threatening f5.} f6 {[#]} (38... Qd7 $16 39. Re2 Kh7) 39. f5 $1 $18 Bh5 (39... fxe5 {was worth a try.} 40. Rd3 (40. fxg6 Qxd6 41. Qxd6 Rxd6 $16) 40... Bxf5 41. Nf7+ Qxf7 42. Qxf7 Bxd3) 40. Rd3 {[%cal Od6f7] And now Nf7+! would win.} ({Weaker is} 40. Qe6 Qc7 41. Qc4 Qxc4 42. Nxc4 Rd4 $11) 40... Kh7 (40... fxe5 $2 {too greedy.} 41. Nf7+ Qxf7 42. Qxf7 (42. Qxd8+ Kh7 $18) 42... Bxf7 43. Rxd8+ Kh7 44. a3 $18) 41. e6 Be2 42. Rd2 Bxb5 43. Qxb5 Rxd6 44. Rxd6 Qxd6 {[#]} 45. Kh3 $1 {Threatening mate with Qd7.} a6 $2 (45... Qa3 $18 46. Qe2 Qe7) 46. Qd7 {Weighted Error Value: White=0.14 (very precise) /Black=0.38.  Mistake:       	White=3     	Black=6      Inaccurate:     	White=1     	Black=3      OK:         	White=16    	Black=15     Best:        	White=2     	Black=1      Strong:       	White=2     	---} ({Less strong is} 46. Qxa6 Qd1 $11) 1-0

[Event "45th FIDE Womens Olympiad 2024"]
[Site "Budapest"]
[Date "2024.09.16"]
[Round "6.63"]
[White "Chirivi C, Jenny Astrid"]
[Black "Pavlidou, Ekaterini"]
[Result "1/2-1/2"]
[ECO "E39"]
[WhiteElo "2120"]
[BlackElo "2141"]
[Annotator "NA"]
[PlyCount "90"]
[EventDate "2024.09.05"]
[EventType "team-tourn"]
[EventCountry "HUN"]
[SourceTitle "playchess.com"]
[Source "ChessBase"]
[SourceQuality "1"]
[WhiteTeam "Colombia"]
[BlackTeam "Greece"]
[WhiteTeamCountry "COL"]
[BlackTeamCountry "GRE"]
[TimeControl "40/5400+30:1800+30"]

1. d4 Nf6 2. c4 e6 3. Nc3 Bb4 4. Qc2 c5 5. dxc5 O-O 6. a3 Bxc5 7. Nf3 b6 8. Bg5 h6 9. Bh4 Be7 10. e4 Nc6 11. Rd1 a6 12. Be2 Nh5 13. Bg3 Nxg3 14. hxg3 Qc7 15. O-O Rd8 16. Nd5 exd5 17. cxd5 Bb7 18. dxc6 dxc6 19. e5 c5 20. Qf5 Bd5 21. Rfe1 Qc6 22. Bd3 g6 23. Qf4 Bf8 24. e6 Bxe6 25. Ne5 Qe8 26. Ng4 Bg7 27. Nxh6+ Kh7 28. Ng4 Qe7 29. Ne5 Rd4 30. Qf3 Bd5 31. Qh5+ Kg8 32. Nxg6 fxg6 33. Qxd5+ Rxd5 34. Rxe7 Kf8 35. Re3 Bxb2 36. Rb1 Rad8 37. Rf3+ Kg7 38. Bc2 Bf6 39. Rxb6 R8d6 40. Rb7+ Rd7 41. Rb6 R7d6 42. Rb7+ Rd7 43. Rxd7+ Rxd7 44. Bd3 a5 45. Kf1 Rb7 1/2-1/2

[Event "45th FIDE Womens Olympiad 2024"]
[Site "Budapest"]
[Date "2024.09.16"]
[Round "6.64"]
[White "Makropoulou, Marina"]
[Black "Lopez Rayo, Isabella"]
[Result "1/2-1/2"]
[ECO "B51"]
[WhiteElo "2103"]
[BlackElo "1952"]
[Annotator "NA"]
[PlyCount "68"]
[EventDate "2024.09.05"]
[EventType "team-tourn"]
[EventCountry "HUN"]
[SourceTitle "playchess.com"]
[Source "ChessBase"]
[SourceQuality "1"]
[WhiteTeam "Greece"]
[BlackTeam "Colombia"]
[WhiteTeamCountry "GRE"]
[BlackTeamCountry "COL"]
[TimeControl "40/5400+30:1800+30"]

1. e4 c5 2. Nf3 d6 3. Bb5+ Nd7 4. O-O a6 5. Bxd7+ Bxd7 6. d4 cxd4 7. Qxd4 e5 8. Qd3 b5 9. Rd1 h6 10. Nc3 Nf6 11. a4 b4 12. Nd5 Nxd5 13. Qxd5 Be7 14. Be3 Qc8 15. Qd2 Qb7 16. Qd3 Rd8 17. Nd2 Bc6 18. c4 bxc3 19. Qxc3 O-O 20. f3 d5 21. Qxe5 Bf6 22. Qg3 dxe4 23. Nxe4 Bxe4 24. fxe4 Rxd1+ 25. Rxd1 Qxe4 26. b3 Re8 27. Bf2 Rc8 28. Re1 Qc2 29. Qe3 a5 30. h3 Bg5 31. Qf3 Bf6 32. Qe3 Bg5 33. Qf3 Bf6 34. Qe3 Bg5 1/2-1/2

[Event "45th FIDE Womens Olympiad 2024"]
[Site "Budapest"]
[Date "2024.09.16"]
[Round "6.65"]
[White "Ryjanova, Julia"]
[Black "Efroimski, Marsel"]
[Result "1/2-1/2"]
[ECO "D10"]
[WhiteElo "2255"]
[BlackElo "2408"]
[Annotator "TA"]
[PlyCount "25"]
[EventDate "2024.09.05"]
[EventType "team-tourn"]
[EventCountry "HUN"]
[SourceTitle "playchess.com"]
[Source "ChessBase"]
[SourceQuality "1"]
[WhiteTeam "Australia"]
[BlackTeam "Israel"]
[WhiteTeamCountry "AUS"]
[BlackTeamCountry "ISR"]
[TimeControl "40/5400+30:1800+30"]

{[%evp 15,25,12,10,8,0,0,0,0,0,0,0,0]} 1. d4 d5 2. c4 c6 3. cxd5 cxd5 4. Nc3 Nf6 5. Bf4 Nc6 6. e3 a6 7. Bd3 Bg4 8. f3 Bh5 {The position is equal.} 9. Qb3 Na5 10. Qa4+ Nc6 $1 11. Qb3 Na5 12. Qa4+ Nc6 $1 13. Qb3 {A rather calm draw.   Weighted Error Value: White=0.00 (flawless) /Black=0.00 (flawless) .  OK:         	White=3     	Black=2      Strong:       	---       	Black=2} 1/2-1/2

[Event "45th FIDE Womens Olympiad 2024"]
[Site "Budapest"]
[Date "2024.09.16"]
[Round "6.66"]
[White "Klinova, Masha"]
[Black "Zhang, Jilin"]
[Result "1/2-1/2"]
[ECO "B51"]
[WhiteElo "2227"]
[BlackElo "2155"]
[Annotator "TA"]
[PlyCount "65"]
[EventDate "2024.09.05"]
[EventType "team-tourn"]
[EventCountry "HUN"]
[SourceTitle "playchess.com"]
[Source "ChessBase"]
[SourceQuality "1"]
[WhiteTeam "Israel"]
[BlackTeam "Australia"]
[WhiteTeamCountry "ISR"]
[BlackTeamCountry "AUS"]
[TimeControl "40/5400+30:1800+30"]

{[%evp 15,65,10,29,12,9,8,33,26,38,41,39,12,13,0,0,0,3,0,0,0,0,-14,-17,-43,-37,-67,-37,-46,-36,-33,-36,-34,-34,-43,-33,-41,-23,-31,0,0,20,8,35,35,38,38,31,4,1,2,51,4]} 1. e4 c5 2. Nf3 d6 3. Bb5+ Nd7 4. O-O a6 5. Bxd7+ Bxd7 6. d4 cxd4 7. Qxd4 e5 8. Qd3 h6 9. c4 b5 {[%cal Bb7b5,Bb5b4][%mdl 32]} 10. Nfd2 Nf6 11. Nc3 b4 12. Nd5 Nxd5 13. Qxd5 Be7 14. a3 bxa3 15. b3 {[%cal Od2b1]} O-O 16. Bxa3 Be6 17. Qd3 Qb6 18. Kh1 a5 19. f3 Rfc8 20. Rfd1 Qc6 21. Rac1 Qa6 22. Rc3 Rc6 23. Ra1 Bd8 24. Bb2 {[%cal Ba3b2,Bb2c3,Bc3d2][%mdl 32]} Qb7 {[%cal Oa5a4]} 25. Rc2 Rca6 26. Bc3 Bg5 27. Rca2 {[%cal Ra2a5]} Bxd2 28. Bxd2 Qc7 29. h3 a4 30. Rxa4 Rxa4 31. Rxa4 Rxa4 32. bxa4 Qxc4 (32... Bxc4 $11 33. Qe3 d5) 33. Qxc4 {Weighted Error Value: White=0.07 (flawless) /Black=0.09 (flawless) .  Mistake:       	White=1     	Black=1      Inaccurate:     	White=4     	Black=3      OK:         	White=11    	Black=11} (33. Qxd6 $14 Qxa4 34. Bc3 (34. Qxe5 $2 {too greedy.} Qd1+ $19)) 1/2-1/2

[Event "45th FIDE Womens Olympiad 2024"]
[Site "Budapest"]
[Date "2024.09.16"]
[Round "6.67"]
[White "Nguyen, Thu Giang"]
[Black "Orian, Noga"]
[Result "1/2-1/2"]
[ECO "B40"]
[WhiteElo "2068"]
[BlackElo "2187"]
[Annotator "TA"]
[PlyCount "111"]
[EventDate "2024.09.05"]
[EventType "team-tourn"]
[EventCountry "HUN"]
[SourceTitle "playchess.com"]
[Source "ChessBase"]
[SourceQuality "1"]
[WhiteTeam "Australia"]
[BlackTeam "Israel"]
[WhiteTeamCountry "AUS"]
[BlackTeamCountry "ISR"]
[TimeControl "40/5400+30:1800+30"]

{[%evp 15,111,-7,25,0,0,-13,10,14,13,0,40,-14,0,-17,0,-18,0,-12,-8,-19,0,0,20,0,100,0,-2,0,64,0,67,68,72,64,78,79,79,68,60,0,0,0,0,0,0,0,62,0,108,15,26,0,0,0,0,-12,-22,-25,-14,-19,0,0,0,0,0,0,0,0,20,20,13,-23,40,40,40,40,48,48,65,42,160,86,86,86,86,86,86,86,235,0,79,0,200,15,54,0,214,0]} 1. e4 c5 2. Nf3 e6 3. c3 Nf6 4. Bd3 Nc6 5. Bc2 Qc7 6. d4 {B40: Sicilian: 2...e6, Unusual lines.} cxd4 7. Nxd4 a6 8. a4 $146 ({Predecessor:} 8. O-O b5 9. a4 Bb7 10. axb5 Nxd4 11. Qxd4 axb5 12. Rxa8+ Bxa8 13. Nd2 e5 14. Qd3 {0-1 Mikic,I (1827)-Ljikar,Z (2201) Gradiste op 3rd 2023 (6)}) 8... b6 9. Be3 Bb7 10. Nd2 Ne5 11. Qe2 Rc8 12. f3 d5 13. Bg5 (13. f4 $14 Nc4 14. e5 Nxe3 15. Qxe3) 13... dxe4 14. Nxe4 Nd5 15. Rd1 Be7 16. Bc1 Ng6 17. g3 Ne5 18. O-O Nc6 19. Nb3 h6 (19... O-O $11) 20. Rfe1 (20. Rxd5 $1 $16 exd5 21. Bf4) 20... Rd8 $11 21. Nf2 Kf8 (21... O-O $11) 22. Bd3 (22. Be4 $14) 22... a5 ({Better is} 22... h5 $1 $11) 23. Be4 $1 $14 h5 24. Bxd5 Rxd5 25. Rxd5 exd5 26. Bf4 Qd8 27. Nd4 ({White should try} 27. h4 $14) 27... Nxd4 $11 28. cxd4 g5 29. Bd2 Bd6 30. Nh3 Rg8 (30... f6 $11) 31. Qd3 (31. f4 $14 g4 32. f5) 31... Qf6 {[#]} (31... Bc8 $1 $11 {remains equal.} 32. Qh7 Bxh3 33. Qh6+ Rg7 34. Qh8+ Rg8 35. Qh6+ Rg7 36. Qh8+ Rg8 37. Qh6+) 32. Qe3 (32. f4 $1 $16 {[%cal Rh3g5]} gxf4 33. Nxf4 (33. Rf1 Qg6 $11)) 32... Be7 $11 33. Rc1 (33. f4 {is more complex.} g4 34. f5 Rh8 35. Nf4) 33... Qd6 34. Qd3 Bc6 35. b3 Bd7 36. Nf2 Rg6 37. Nd1 Kg8 38. Ne3 Bf6 39. Kg2 Qe6 40. g4 hxg4 41. fxg4 Qd6 42. Rf1 Bd8 43. Be1 Be6 (43... b5 $11 44. axb5 Qb6) 44. Bg3 $14 Qd7 45. h3 Bc7 46. Nf5 Bxg3 47. Qxg3 Kh7 {[#]} ({Black should play} 47... Bxf5 $14 48. Rxf5 Qc8) 48. Qe5 (48. h4 $142 $1 {[%cal Rh4g5] And now hxg5 would win.} Qd8 49. hxg5) 48... Qd8 49. Ng3 Qc8 50. Qe3 Qc2+ 51. Rf2 Qd1 (51... Qc7 $16) 52. Rf1 $2 (52. Nh5 $18 {and the rest is easy.}) 52... Qc2+ $16 53. Rf2 (53. Kg1 $16) 53... Qd1 $1 $18 54. Ne2 $2 (54. Nh5 $18) 54... Kg8 55. Ng3 $2 (55. Ng1 $14 Qb1 56. Nf3) 55... Kh7 $1 $18 56. Rf1 $2 ({Only move:} 56. Nh5 $18) 1/2-1/2

[Event "45th FIDE Womens Olympiad 2024"]
[Site "Budapest"]
[Date "2024.09.16"]
[Round "6.68"]
[White "Levitan, Ronit"]
[Black "Shen, Zhiyuan"]
[Result "0-1"]
[ECO "B07"]
[WhiteElo "2137"]
[BlackElo "1969"]
[Annotator "ChessBase"]
[PlyCount "154"]
[EventDate "2024.09.05"]
[EventType "team-tourn"]
[EventCountry "HUN"]
[SourceTitle "playchess.com"]
[Source "ChessBase"]
[SourceQuality "1"]
[WhiteTeam "Israel"]
[BlackTeam "Australia"]
[WhiteTeamCountry "ISR"]
[BlackTeamCountry "AUS"]
[TimeControl "40/5400+30:1800+30"]

1. e4 c5 2. Nf3 Nc6 3. Bb5 g6 4. O-O Bg7 5. c3 Nf6 6. Re1 O-O 7. d4 cxd4 8. cxd4 d6 9. Nc3 Bg4 10. Be3 Nd7 11. Be2 Rc8 12. Qd2 a6 13. Rac1 b5 14. h3 Bxf3 15. Bxf3 Nb6 16. b3 e6 17. d5 Ne5 18. Be2 Ned7 19. dxe6 fxe6 20. Bg4 Qe7 21. Ne2 h5 22. Bf3 Nc5 23. Red1 Rfd8 24. Nf4 Kh7 25. Nd3 Nbd7 26. Nxc5 Nxc5 27. b4 Nb7 28. Bg5 Qf7 29. Bxd8 Rxd8 30. Rc6 Be5 31. Rdc1 Rd7 32. Qc2 Bf4 33. Rd1 a5 34. a3 axb4 35. axb4 Be5 36. Rc1 Bf4 37. Ra1 Nd8 38. Rc8 Be5 39. Raa8 Qe7 40. Be2 d5 41. exd5 Kh6 42. Qc1+ Kh7 43. Bxb5 Rxd5 44. Rc5 Nf7 45. Bc6 Rd4 46. Rc4 Rd3 47. Be4 Rd7 48. Qb1 Qf6 49. Bf3 Nd6 50. Rc1 Qf4 51. Ra3 Qh2+ 52. Kf1 Nf5 53. Rd3 Rxd3 54. Qxd3 Qh1+ 55. Ke2 Qxc1 56. Qd7+ Kh6 57. Qd2+ Qxd2+ 58. Kxd2 Nd4 59. Bd1 Kg5 60. Kd3 Nb5 61. Ba4 Nc7 62. g3 Kf6 63. b5 Nd5 64. Bb3 Bc7 65. f3 Bxg3 66. Ke2 Nc3+ 67. Kf1 Nxb5 68. Kg2 Bf4 69. Ba4 Nd4 70. Be8 Bd6 71. Kf2 Kf5 72. Bf7 Nc6 73. Be8 Ne5 74. Kg2 Kf4 75. Kf2 Bc5+ 76. Ke2 Kg3 77. Ba4 Nxf3 0-1

[Event "45th FIDE Womens Olympiad 2024"]
[Site "Budapest"]
[Date "2024.09.16"]
[Round "6.69"]
[White "Vanduyfhuys, Daria"]
[Black "Ouellet, Maili-Jade"]
[Result "0-1"]
[ECO "D38"]
[WhiteElo "2112"]
[BlackElo "2318"]
[Annotator "TA"]
[PlyCount "144"]
[EventDate "2024.09.05"]
[EventType "team-tourn"]
[EventCountry "HUN"]
[SourceTitle "playchess.com"]
[Source "ChessBase"]
[SourceQuality "1"]
[WhiteTeam "Belgium"]
[BlackTeam "Canada"]
[WhiteTeamCountry "BEL"]
[BlackTeamCountry "CAN"]
[TimeControl "40/5400+30:1800+30"]

{[%evp 20,144,10,15,10,0,0,0,0,0,0,0,2,0,10,8,29,0,32,0,20,6,1833,24,22,0,0,0,973,-535,7,0,3,0,0,0,0,0,0,0,0,0,0,0,7,6,5,6,8,5,5,5,6,6,6,0,4,4,5,-35,-36,-88,-95,-93,-56,-56,0,0,0,0,0,0,0,0,0,0,0,0,0,0,0,0,0,0,0,0,0,0,0,0,69,0,0,0,0,0,0,0,0,0,0,0,0,0,0,0,0,0,8,-5531,-5454,-5514,-2389,-29968,-29971,-29969,-29971,-29969,-29971,-29968,-29972,-29968,-29973,-29972,-29975,-29973,-29965]} 1. d4 Nf6 2. c4 e6 3. Nf3 d5 4. Nc3 Bb4 5. Bg5 h6 6. Bxf6 Qxf6 7. e3 O-O 8. Rc1 dxc4 9. Bxc4 c5 10. O-O cxd4 11. Nxd4 Bd7 12. Qb3 Nc6 13. Nxc6 Bxc3 {The position is equal.} 14. Qxc3 Bxc6 15. Qxf6 gxf6 16. Rfd1 Rfd8 17. f3 Kf8 18. Kf2 Ke7 19. Bb3 a5 20. Rxd8 Rb8 {[%mdl 8192] [#]} 21. Rc8 $2 Rxc8 $11 {[%mdl 4096] Endgame. KRB-KRB} 22. Rd1 Bb5 23. Rd4 Rc3 $2 {[%mdl 8192]} 24. a3 $4 {[%mdl 8192]} (24. bxc3 $18 Bc6 25. Rh4) 24... Rc1 $2 (24... Rxb3 $19 25. Rd2 f5) 25. Rd1 Rc5 26. Rd4 Bc6 {And now ...Rb5 would win.} 27. Rd2 a4 28. Bc2 f5 29. Ke2 Kf6 30. Kd1 Rc4 31. Bd3 Rh4 32. h3 {[#] Threatens to win with f4.} f4 33. Ke2 Ke5 34. Rc2 fxe3 35. Kxe3 f5 36. Rc5+ Kd6 37. Ra5 Rh5 {[%cal Of5f4] aiming for ...f4+!} 38. Ra8 Rg5 39. Kf2 f4 $1 40. Rf8 (40. Rd8+ $15 Bd7 41. h4) 40... Rd5 $17 41. Rd8+ Ke5 42. Rxd5+ Kxd5 $15 {KB-KB} (42... exd5 $15 43. Ke1 Kd4) 43. h4 $11 Kd4 44. Bc2 e5 45. Ke2 e4 46. fxe4 Bxe4 47. Bxa4 Bxg2 48. Bb5 Bd5 49. Kf2 $1 Be4 50. Be2 b6 51. Bb5 Ke5 52. Bd7 Bd3 53. Kf3 Bc2 54. Kf2 Bd1 ({Black should play} 54... Bb3 $11) 55. Ke1 ({Better is} 55. b4 $14) 55... Bb3 56. Kf2 Bc4 57. Kf3 Bd5+ 58. Kf2 Ke4 59. Bb5 f3 60. Bf1 Kd4 61. Bb5 $1 Bb7 62. Bf1 Bc6 63. Ba6 b5 64. b3 $2 {[%mdl 8192]} (64. Bc8 $11) 64... Kc3 $19 65. a4 b4 (65... Kxb3 $2 {perishes.} 66. axb5 (66. Bxb5 Ba8 $11) 66... Ba8 67. b6 $18) 66. Bc8 Kxb3 {Black mates.} 67. a5 Ka4 68. a6 Ka5 69. Ke3 Kb6 70. Kd2 Bb5 71. Ke3 Bxa6 72. Be6 Be2 {Never resign too early!   Weighted Error Value: White=0.30/Black=0.23 (precise) .  Loses game:     	White=1     	Black=2      Missed win:     	White=2     	Black=1      Mistake:       	White=2     	Black=2      Inaccurate:     	White=3     	Black=2      OK:         	White=16    	Black=18     Best:        	White=4     	Black=3      Strong:       	White=2     	Black=1} 0-1

[Event "45th FIDE Womens Olympiad 2024"]
[Site "Budapest"]
[Date "2024.09.16"]
[Round "6.70"]
[White "Li, Yunshan"]
[Black "De Rycke, Tyani"]
[Result "0-1"]
[ECO "E94"]
[WhiteElo "2268"]
[BlackElo "2110"]
[Annotator "TA"]
[PlyCount "97"]
[EventDate "2024.09.05"]
[EventType "team-tourn"]
[EventCountry "HUN"]
[SourceTitle "playchess.com"]
[Source "ChessBase"]
[SourceQuality "1"]
[WhiteTeam "Canada"]
[BlackTeam "Belgium"]
[WhiteTeamCountry "CAN"]
[BlackTeamCountry "BEL"]
[TimeControl "40/5400+30:1800+30"]

{[%evp 18,97,79,14,22,27,45,39,45,0,46,39,43,41,84,63,63,66,114,95,93,89,109,0,87,60,77,35,37,43,69,14,17,0,14,-5,-6,-414,-368,-417,-421,-423,-417,-375,-397,-391,-393,-412,-411,-409,-385,-383,-369,-388,-373,-513,-532,-545,-533,-550,-551,-504,-505,-576,-526,-513,-525,-733,-504,-727,-547,-529,-525,-588,-588,-633,-614,-733,-621,-863,-843,-1284]} 1. d4 Nf6 2. c4 g6 3. Nc3 Bg7 4. e4 d6 5. Nf3 Nbd7 6. Be2 O-O 7. O-O e5 8. Be3 c6 9. Qc2 Qe7 10. Rfd1 (10. d5 $16) 10... exd4 $11 11. Nxd4 Nc5 12. f3 a5 {[%cal Ba7a5,Ba5a4,Ba4a3][%mdl 32] White is slightly better.} 13. Nb3 Ne6 (13... Nfd7 $11 {was preferrable.}) 14. Qd2 $14 {[%cal Oc3a4]} a4 15. Nd4 a3 16. b4 Rd8 17. Rac1 Nc7 (17... Nxd4 $14 18. Bxd4 Be6) 18. b5 Bd7 19. Nb3 {[%cal Ob3a5]} Be6 20. Nd4 Bd7 21. Rb1 Ne6 22. Nxe6 Bxe6 23. Bg5 Rd7 24. bxc6 (24. Rbc1 $14) 24... bxc6 $11 25. Rb6 Rc8 26. Nb1 d5 27. e5 {[%mdl 8192] This costs White the game.} (27. cxd5 $11 {and White has nothing to worry.} cxd5 28. e5 Qc5+ 29. Qd4 Qxd4+ 30. Rxd4) 27... dxc4 $19 28. exf6 Rxd2 29. fxe7 Rxd1+ ({Worse is} 29... Rxe2 30. Rd8+ (30. Nxa3 Bd5 $16) (30. Nxa3 Bd5 $16)) 30. Bxd1 Bd4+ 31. Kf1 {[%cal Ob6c6] [#] Rxc6! is the strong threat.} Bxb6 32. Nxa3 Bc5 33. Nb1 f6 34. Bxf6 Kf7 {[%csl LRe7,LRf6]} 35. Bc3 Bxe7 36. Ke2 Bf5 {Black is clearly winning.} 37. Nd2 Bd3+ 38. Ke3 Bc5+ 39. Kf4 {[#]} g5+ $1 40. Kxg5 (40. Kg3 Rd8) 40... Rg8+ 41. Kf4 Rxg2 42. h4 Be7 43. Ke3 Bxh4 {Hoping for ...Bf2+.} 44. f4 Bd8 45. Bh5+ Ke6 46. Kf3 Rg1 {And now ...Rc1 would win.} 47. Bd4 Rc1 {White must now prevent ...Ba5.} 48. Be8 Ba5 49. Ne4 {Weighted Error Value: White=0.61/Black=0.22 (precise) .  Loses game:     	White=1     	---        Mistake:       	White=1     	Black=2      Inaccurate:     	White=6     	Black=3      OK:         	White=12    	Black=19     Best:        	White=3     	Black=3} 0-1